[Event "44th Chess Olympiad Women 2022"]
[Site "Chennai"]
[Date "2022.08.05"]
[Round "7.42"]
[White "Darweeche, Roaa"]
[Black "Curwin, Nickaylah"]
[Result "0-1"]
[WhiteElo "1548"]
[BlackElo "1499"]
[Annotator "NA RC"]
[PlyCount "144"]
[EventDate "2022.??.??"]
[TimeControl "60"]

1. b4 {[%emt 0:00:17]} d5 {[%emt 0:00:07]} 2. Bb2 {[%emt 0:00:12]} Bf5 {
[%emt 0:00:17]} 3. Nf3 {[%emt 0:01:12]} e6 {[%emt 0:00:53]} 4. a3 {[%emt 0:00:
00]} Nf6 {[%emt 0:00:20]} 5. Nh4 {[%emt 0:05:32]} Bg6 {[%emt 0:02:20]} 6. Nxg6
{[%emt 0:03:40]} hxg6 {[%emt 0:00:55]} 7. d3 {[%emt 0:02:09]} c6 {[%emt 0:00:
00]} 8. Nd2 {[%emt 0:02:01]} Be7 {[%emt 0:00:58]} 9. g3 {[%emt 0:03:58]} Qb6 {
[%emt 0:03:29]} 10. Nb3 {[%emt 0:13:07]} Nbd7 {[%emt 0:04:59]} 11. e3 {[%emt 0:
00:00]} Rc8 {[%emt 0:05:14]} 12. c4 {[%emt 0:04:12]} Qd8 {[%emt 0:09:03]} 13.
c5 {[%emt 0:04:41]} Qc7 {[%emt 0:01:37]} 14. Bg2 {[%emt 0:02:27]} O-O {[%emt 0:
00:00]} 15. O-O {[%emt 0:11:52]} e5 {[%emt 0:05:17]} 16. Qc2 {[%emt 0:03:17]}
Rfe8 {[%emt 0:05:11]} 17. Rad1 {[%emt 0:01:21]} Nh7 {[%emt 0:01:14]} 18. f4 {
[%emt 0:03:04]} Bf6 {[%emt 0:01:13]} 19. f5 {[%emt 0:02:41]} Ndf8 {[%emt 0:00:
00]} 20. Qf2 {[%emt 0:03:50]} Rcd8 {[%emt 0:03:16]} 21. h4 {[%emt 0:01:40]} Qe7
{[%emt 0:04:06]} 22. Bh3 {[%emt 0:01:44]} g5 {[%emt 0:02:21]} 23. h5 {[%emt 0:
00:00]} e4 {[%emt 0:06:20]} 24. d4 {[%emt 0:00:22]} Qc7 {[%emt 0:01:49]} 25.
Bg4 {[%emt 0:01:05]} Nd7 {[%emt 0:00:49]} 26. Qh2 {[%emt 0:01:35]} Ndf8 {
[%emt 0:04:02]} 27. Kg2 {[%emt 0:00:41]} Be7 {[%emt 0:02:17]} 28. h6 {[%emt 0:
00:00]} g6 {[%emt 0:00:58]} 29. fxg6 {[%emt 0:01:16]} Nxg6 {[%emt 0:00:23]} 30.
Bh5 {[%emt 0:00:39]} Rf8 {[%emt 0:02:26]} 31. Rf2 {[%emt 0:00:48]} Rde8 {
[%emt 0:03:24]} 32. Rdf1 {[%emt 0:00:28]} Bd8 {[%emt 0:00:10]} 33. Qh3 {
[%emt 0:01:03]} Re6 {[%emt 0:04:28]} 34. Nd2 {[%emt 0:00:52]} Rf6 {[%emt 0:00:
00]} 35. Rxf6 {[%emt 0:01:39]} Bxf6 {[%emt 0:00:33]} 36. Bxg6 {[%emt 0:00:56]}
fxg6 {[%emt 0:00:12]} 37. Qe6+ {[%emt 0:00:26]} Qf7 {[%emt 0:00:56]} 38. Qh3 {
[%emt 0:00:21]} Qe7 {[%emt 0:00:49]} 39. a4 {[%emt 0:00:37]} Bh8 {[%emt 0:00:
00]} 40. Kg1 {[%emt 0:03:16]} Rxf1+ {[%emt 0:02:20]} 41. Qxf1 {[%emt 0:27:52]}
Qf6 {[%emt 0:31:52]} 42. b5 {[%emt 0:00:59]} g4 {[%emt 0:00:36]} 43. Qxf6 {
[%emt 0:01:56]} Bxf6 {[%emt 0:00:11]} 44. Nb3 {[%emt 0:00:03]} Bd8 {[%emt 0:00:
00]} 45. Bc3 {[%emt 0:00:28]} Kf7 {[%emt 0:02:44]} 46. bxc6 {[%emt 0:01:10]}
bxc6 {[%emt 0:00:51]} 47. Ba5 {[%emt 0:00:38]} Bg5 {[%emt 0:00:16]} 48. Kf2 {
[%emt 0:00:16]} Ke6 {[%emt 0:00:27]} 49. Bc7 {[%emt 0:00:13]} Bxh6 {[%emt 0:00:
00]} 50. Bb8 {[%emt 0:01:36]} a6 {[%emt 0:01:11]} 51. Na5 {[%emt 0:01:29]} Kd7
{[%emt 0:00:27]} 52. Be5 {[%emt 0:00:00]} Ng5 {[%emt 0:00:00]} 53. Bf4 {
[%emt 0:00:00]} Nh3+ {[%emt 0:00:00]} 54. Kg2 {[%emt 0:00:00]} Bf8 {[%emt 0:00:
00]} 55. Nb3 {[%emt 0:00:00]} Be7 {[%emt 0:00:00]} 56. Nd2 {[%emt 0:00:00]} Bd8
{[%emt 0:00:00]} 57. Nf1 {[%emt 0:00:00]} Ke6 {[%emt 0:00:00]} 58. Nd2 {
[%emt 0:00:00]} Kd7 {[%emt 0:00:00]} 59. Nb3 {[%emt 0:00:00]} Ke6 {[%emt 0:00:
00]} 60. Kf1 {[%emt 0:00:00]} Nxf4 {[%emt 0:00:00]} 61. gxf4 {[%emt 0:00:00]}
Kf5 {[%emt 0:00:00]} 62. Nc1 {[%emt 0:00:00]} g5 {[%emt 0:00:00]} 63. Ne2 {
[%emt 0:00:00]} gxf4 {[%emt 0:00:00]} 64. Nxf4 {[%emt 0:00:00]} Bc7 {[%emt 0:
00:00]} 65. Ng2 {[%emt 0:00:00]} g3 {[%emt 0:00:00]} 66. Ne1 {[%emt 0:00:00]}
Kg4 {[%emt 0:00:00]} 67. Kg1 {[%emt 0:00:00]} Ba5 {[%emt 0:00:00]} 68. Nc2 {
[%emt 0:00:00]} Kf3 {[%emt 0:00:00]} 69. Kf1 {[%emt 0:00:00]} Bd2 {[%emt 0:00:
00]} 70. Na3 {[%emt 0:00:19]} g2+ {[%emt 0:00:00]} 71. Kg1 {[%emt 0:00:12]}
Bxe3+ {[%emt 0:00:00]} 72. Kh2 {[%emt 0:00:05]} g1=Q+ {[%emt 0:00:00]} 0-1

[Event "44th Chess Olympiad Women 2022"]
[Site "Chennai"]
[Date "2022.08.05"]
[Round "7.42"]
[White "Mouradian, Knarik"]
[Black "Miller, Rachel"]
[Result "1/2-1/2"]
[WhiteElo "2121"]
[BlackElo "1961"]
[Annotator "NA RC"]
[PlyCount "124"]
[EventDate "2022.??.??"]
[TimeControl "60"]

1. e4 {[%emt 0:00:08]} e5 {[%emt 0:00:21]} 2. Nf3 {[%emt 0:00:07]} Nc6 {
[%emt 0:00:18]} 3. Nc3 {[%emt 0:00:24]} Nf6 {[%emt 0:00:25]} 4. d4 {[%emt 0:00:
00]} exd4 {[%emt 0:00:24]} 5. Nxd4 {[%emt 0:00:08]} Bb4 {[%emt 0:00:26]} 6.
Nxc6 {[%emt 0:00:25]} bxc6 {[%emt 0:00:26]} 7. Bd3 {[%emt 0:00:27]} O-O {
[%emt 0:00:26]} 8. O-O {[%emt 0:01:17]} d5 {[%emt 0:01:02]} 9. e5 {[%emt 0:00:
00]} Ng4 {[%emt 0:02:47]} 10. Bf4 {[%emt 0:01:04]} Re8 {[%emt 0:03:59]} 11. Re1
{[%emt 0:34:41]} d4 {[%emt 0:17:21]} 12. a3 {[%emt 0:13:12]} dxc3 {[%emt 0:00:
00]} 13. axb4 {[%emt 0:00:06]} cxb2 {[%emt 0:00:33]} 14. Rb1 {[%emt 0:00:53]}
Be6 {[%emt 0:04:38]} 15. Qf3 {[%emt 0:07:48]} f6 {[%emt 0:12:09]} 16. h3 {
[%emt 0:16:53]} fxe5 {[%emt 0:15:44]} 17. hxg4 {[%emt 0:01:17]} exf4 {[%emt 0:
00:00]} 18. Qxc6 {[%emt 0:06:56]} Bxg4 {[%emt 0:05:08]} 19. Rxe8+ {[%emt 0:00:
00]} Qxe8 {[%emt 0:00:08]} 20. Qc4+ {[%emt 0:00:39]} Be6 {[%emt 0:04:15]} 21.
Qe4 {[%emt 0:00:46]} g6 {[%emt 0:01:02]} 22. Rxb2 {[%emt 0:02:36]} Bf7 {
[%emt 0:01:51]} 23. Qxf4 {[%emt 0:01:51]} Qe1+ {[%emt 0:01:57]} 24. Kh2 {
[%emt 0:00:04]} Re8 {[%emt 0:01:42]} 25. Bc4 {[%emt 0:02:05]} Re7 {[%emt 0:00:
00]} 26. Rb3 {[%emt 0:00:27]} Bxc4 {[%emt 0:00:54]} 27. Qxc4+ {[%emt 0:00:02]}
Qe6 {[%emt 0:00:08]} 28. Qxe6+ {[%emt 0:01:10]} Rxe6 {[%emt 0:00:03]} 29. Rc3 {
[%emt 0:01:17]} c6 {[%emt 0:00:46]} 30. Kg3 {[%emt 0:00:30]} Kf7 {[%emt 0:00:
00]} 31. f4 {[%emt 0:00:31]} h5 {[%emt 0:02:46]} 32. Ra3 {[%emt 0:01:08]} Re7 {
[%emt 0:00:13]} 33. Ra6 {[%emt 0:00:14]} Re3+ {[%emt 0:01:50]} 34. Kh4 {
[%emt 0:01:52]} Rc3 {[%emt 0:00:06]} 35. Kg5 {[%emt 0:00:47]} Rg3+ {[%emt 0:00:
00]} 36. Kh6 {[%emt 0:00:02]} Rxg2 {[%emt 0:00:10]} 37. Rxc6 {[%emt 0:00:26]}
h4 {[%emt 0:00:07]} 38. Rc3 {[%emt 0:01:07]} Rg4 {[%emt 0:00:48]} 39. b5 {
[%emt 0:00:23]} Rxf4 {[%emt 0:00:31]} 40. Kg5 {[%emt 0:00:19]} Rf5+ {[%emt 0:
00:00]} 41. Kxh4 {[%emt 0:30:03]} Rxb5 {[%emt 0:30:06]} 42. Rc7+ {[%emt 0:00:
00]} Kf6 {[%emt 0:00:06]} 43. Rxa7 {[%emt 0:00:05]} Rc5 {[%emt 0:00:18]} 44.
Ra2 {[%emt 0:01:03]} g5+ {[%emt 0:03:08]} 45. Kg4 {[%emt 0:00:12]} Rc4+ {
[%emt 0:01:20]} 46. Kg3 {[%emt 0:00:11]} Kf5 {[%emt 0:01:01]} 47. Ra5+ {
[%emt 0:00:12]} Kg6 {[%emt 0:00:04]} 48. Ra2 {[%emt 0:02:04]} Kh5 {[%emt 0:00:
00]} 49. Rb2 {[%emt 0:00:00]} Rc3+ {[%emt 0:00:00]} 50. Kg2 {[%emt 0:00:00]}
Kh4 {[%emt 0:00:00]} 51. Rb4+ {[%emt 0:00:00]} g4 {[%emt 0:00:00]} 52. Rb3 {
[%emt 0:00:00]} Rxc2+ {[%emt 0:00:00]} 53. Kg1 {[%emt 0:00:00]} Re2 {[%emt 0:
00:00]} 54. Ra3 {[%emt 0:00:00]} Rb2 {[%emt 0:00:00]} 55. Rc3 {[%emt 0:00:00]}
Rd2 {[%emt 0:00:00]} 56. Ra3 {[%emt 0:00:00]} g3 {[%emt 0:00:00]} 57. Ra8 {
[%emt 0:00:00]} Kh3 {[%emt 0:00:00]} 58. Rh8+ {[%emt 0:00:00]} Kg4 {[%emt 0:00:
00]} 59. Rg8+ {[%emt 0:00:00]} Kh3 {[%emt 0:00:00]} 60. Rh8+ {[%emt 0:00:00]}
Kg4 {[%emt 0:00:00]} 61. Rg8+ {[%emt 0:00:00]} Kh3 {[%emt 0:00:00]} 62. Rh8+ {
[%emt 0:00:00]} Kg4 {[%emt 0:00:00]} 1/2-1/2

[Event "44th Chess Olympiad Women 2022"]
[Site "Chennai"]
[Date "2022.08.05"]
[Round "7.43"]
[White "Cho, Yeonhee"]
[Black "Punsalan, Vyanla M"]
[Result "0-1"]
[WhiteElo "1427"]
[BlackElo "1895"]
[Annotator "NA RC"]
[PlyCount "38"]
[EventDate "2022.??.??"]
[TimeControl "60"]

1. e4 {[%emt 0:00:02]} c6 {[%emt 0:00:20]} 2. Nf3 {[%emt 0:00:13]} d5 {[%emt 0:
00:00]} 3. Nc3 {[%emt 0:00:07]} dxe4 {[%emt 0:03:44]} 4. Nxe4 {[%emt 0:00:07]}
Nf6 {[%emt 0:00:27]} 5. Qe2 {[%emt 0:02:31]} Bf5 {[%emt 0:05:47]} 6. Nxf6+ {
[%emt 0:21:52]} gxf6 {[%emt 0:00:20]} 7. d3 {[%emt 0:08:16]} Rg8 {[%emt 0:00:
00]} 8. Bd2 {[%emt 0:04:07]} a5 {[%emt 0:04:14]} 9. O-O-O {[%emt 0:17:25]} Na6
{[%emt 0:05:15]} 10. Kb1 {[%emt 0:05:43]} Nb4 {[%emt 0:08:59]} 11. a3 {[%emt 0:
00:00]} Qd5 {[%emt 0:12:51]} 12. Bxb4 {[%emt 0:18:06]} axb4 {[%emt 0:01:47]}
13. Nd2 {[%emt 0:03:23]} bxa3 {[%emt 0:03:03]} 14. bxa3 {[%emt 0:00:39]} Rxa3 {
[%emt 0:02:10]} 15. Nb3 {[%emt 0:00:14]} Rxb3+ {[%emt 0:03:16]} 16. cxb3 {
[%emt 0:00:22]} Qxb3+ {[%emt 0:00:34]} 17. Ka1 {[%emt 0:00:27]} Rg4 {[%emt 0:
00:00]} 18. Rd2 {[%emt 0:01:12]} Bxd3 {[%emt 0:00:38]} 19. Qxg4 {[%emt 0:00:34]
} Qb1# {[%emt 0:00:11]} 0-1

[Event "44th Chess Olympiad Women 2022"]
[Site "Chennai"]
[Date "2022.08.05"]
[Round "7.43"]
[White "Ning, Isabelle Yixuan"]
[Black "Kang, Sohyun"]
[Result "1-0"]
[WhiteElo "1853"]
[BlackElo "1593"]
[Annotator "NA"]
[PlyCount "71"]
[EventDate "2022.??.??"]
[TimeControl "60"]

1. d4 {[%emt 0:00:05]} d5 {[%emt 0:00:11]} 2. c4 {[%emt 0:00:09]} c6 {[%emt 0:
00:00]} 3. Nc3 {[%emt 0:00:12]} Nf6 {[%emt 0:00:35]} 4. e3 {[%emt 0:00:18]} Bf5
{[%emt 0:02:12]} 5. Nf3 {[%emt 0:01:02]} e6 {[%emt 0:00:42]} 6. Bd3 {[%emt 0:
00:00]} Bg6 {[%emt 0:00:46]} 7. O-O {[%emt 0:01:46]} Nbd7 {[%emt 0:00:30]} 8.
Qe2 {[%emt 0:04:14]} Ne4 {[%emt 0:04:31]} 9. Nd2 {[%emt 0:05:50]} f5 {[%emt 0:
00:00]} 10. f3 {[%emt 0:02:43]} Nef6 {[%emt 0:01:10]} 11. e4 {[%emt 0:02:36]}
dxe4 {[%emt 0:14:54]} 12. fxe4 {[%emt 0:00:23]} Qb6 {[%emt 0:00:37]} 13. exf5 {
[%emt 0:06:33]} Qxd4+ {[%emt 0:03:11]} 14. Kh1 {[%emt 0:00:27]} Ne5 {[%emt 0:
00:00]} 15. fxg6 {[%emt 0:04:06]} Nxd3 {[%emt 0:01:51]} 16. Nf3 {[%emt 0:03:51]
} Qxc4 {[%emt 0:02:42]} 17. Nd2 {[%emt 0:19:20]} Qd4 {[%emt 0:04:28]} 18. Qxe6+
{[%emt 0:01:47]} Be7 {[%emt 0:01:41]} 19. Nde4 {[%emt 0:01:55]} hxg6 {[%emt 0:
00:00]} 20. Bf4 {[%emt 0:11:23]} Nxf4 {[%emt 0:17:52]} 21. Rxf4 {[%emt 0:00:36]
} Qd7 {[%emt 0:06:06]} 22. Rxf6 {[%emt 0:01:11]} O-O-O {[%emt 0:07:21]} 23.
Qxd7+ {[%emt 0:00:37]} Rxd7 {[%emt 0:00:31]} 24. Rxg6 {[%emt 0:03:21]} Bb4 {
[%emt 0:05:59]} 25. h3 {[%emt 0:02:19]} Rhd8 {[%emt 0:01:01]} 26. a3 {[%emt 0:
00:00]} Ba5 {[%emt 0:00:22]} 27. Nc5 {[%emt 0:02:21]} Re7 {[%emt 0:01:51]} 28.
N3e4 {[%emt 0:01:42]} Bc7 {[%emt 0:00:47]} 29. Ng5 {[%emt 0:05:18]} Rd5 {
[%emt 0:03:34]} 30. b4 {[%emt 0:03:48]} Rde5 {[%emt 0:01:54]} 31. Nge6 {
[%emt 0:02:57]} Bd6 {[%emt 0:02:57]} 32. Rxg7 {[%emt 0:00:45]} Bxc5 {[%emt 0:
00:00]} 33. Rg8+ {[%emt 0:00:07]} Kd7 {[%emt 0:00:14]} 34. Nxc5+ {[%emt 0:00:
00]} Kc7 {[%emt 0:00:15]} 35. Rd1 {[%emt 0:03:21]} a5 {[%emt 0:01:22]} 36. Rgd8
{[%emt 0:01:09]} 1-0

[Event "44th Chess Olympiad Women 2022"]
[Site "Chennai"]
[Date "2022.08.05"]
[Round "7.43"]
[White "You, Garam"]
[Black "Thurner, Anya"]
[Result "0-1"]
[WhiteElo "1407"]
[BlackElo "1619"]
[Annotator "NA RC"]
[PlyCount "80"]
[EventDate "2022.??.??"]
[TimeControl "60"]

1. d4 {[%emt 0:00:18]} d5 {[%emt 0:00:04]} 2. c4 {[%emt 0:00:04]} e6 {[%emt 0:
00:00]} 3. Nc3 {[%emt 0:00:03]} Nf6 {[%emt 0:00:06]} 4. Nf3 {[%emt 0:00:02]}
Be7 {[%emt 0:00:08]} 5. Bf4 {[%emt 0:00:04]} O-O {[%emt 0:00:15]} 6. e3 {
[%emt 0:00:02]} b6 {[%emt 0:00:14]} 7. Bd3 {[%emt 0:00:03]} Bb7 {[%emt 0:00:18]
} 8. cxd5 {[%emt 0:00:27]} exd5 {[%emt 0:00:21]} 9. O-O {[%emt 0:00:51]} c5 {
[%emt 0:00:59]} 10. Qe2 {[%emt 0:05:01]} Nc6 {[%emt 0:01:33]} 11. Rfd1 {
[%emt 0:01:28]} cxd4 {[%emt 0:15:11]} 12. Nxd4 {[%emt 0:02:47]} Nxd4 {[%emt 0:
00:00]} 13. exd4 {[%emt 0:00:05]} Rc8 {[%emt 0:03:27]} 14. Rac1 {[%emt 0:08:09]
} Qd7 {[%emt 0:07:25]} 15. Bb5 {[%emt 0:13:21]} Bc6 {[%emt 0:02:20]} 16. Ba6 {
[%emt 0:00:31]} Bb7 {[%emt 0:11:25]} 17. Bb5 {[%emt 0:03:29]} Qd8 {[%emt 0:00:
00]} 18. Re1 {[%emt 0:07:12]} Ne4 {[%emt 0:11:26]} 19. Nxe4 {[%emt 0:17:15]}
dxe4 {[%emt 0:00:47]} 20. Rxc8 {[%emt 0:00:17]} Qxc8 {[%emt 0:00:28]} 21. Rc1 {
[%emt 0:00:55]} Qf5 {[%emt 0:00:48]} 22. Be3 {[%emt 0:14:18]} Rc8 {[%emt 0:00:
00]} 23. Rd1 {[%emt 0:11:16]} Bd5 {[%emt 0:01:15]} 24. Ba6 {[%emt 0:03:20]} Rc7
{[%emt 0:01:02]} 25. Qb5 {[%emt 0:01:08]} Qg4 {[%emt 0:04:46]} 26. Qe8+ {
[%emt 0:02:08]} Bf8 {[%emt 0:00:06]} 27. Qa4 {[%emt 0:03:10]} f5 {[%emt 0:00:
00]} 28. h3 {[%emt 0:00:43]} Qh5 {[%emt 0:01:31]} 29. Bf4 {[%emt 0:00:28]} Rf7
{[%emt 0:01:30]} 30. Rc1 {[%emt 0:00:51]} g5 {[%emt 0:01:43]} 31. Be5 {[%emt 0:
00:00]} f4 {[%emt 0:00:36]} 32. Bc8 {[%emt 0:00:58]} f3 {[%emt 0:00:38]} 33.
Bg4 {[%emt 0:00:16]} Qg6 {[%emt 0:00:14]} 34. Qb5 {[%emt 0:02:07]} Be6 {
[%emt 0:00:47]} 35. Bxe6 {[%emt 0:00:14]} Qxe6 {[%emt 0:00:11]} 36. Qc4 {
[%emt 0:00:42]} Qf5 {[%emt 0:00:42]} 37. Qd5 {[%emt 0:00:58]} fxg2 {[%emt 0:00:
00]} 38. Rc2 {[%emt 0:01:21]} e3 {[%emt 0:00:28]} 39. Qxg2 {[%emt 0:00:28]}
Qxc2 {[%emt 0:00:09]} 40. Qxg5+ {[%emt 0:00:23]} Qg6 {[%emt 0:00:11]} 0-1

[Event "44th Chess Olympiad Women 2022"]
[Site "Chennai"]
[Date "2022.08.05"]
[Round "7.43"]
[White "Zhang, Jasmine Haomo"]
[Black "Park, Sunwoo"]
[Result "1-0"]
[WhiteElo "1972"]
[BlackElo "1773"]
[Annotator "NA RC"]
[PlyCount "107"]
[EventDate "2022.??.??"]
[TimeControl "60"]

1. d4 {[%emt 0:00:07]} d5 {[%emt 0:00:07]} 2. Bf4 {[%emt 0:00:21]} Nf6 {
[%emt 0:00:11]} 3. e3 {[%emt 0:00:05]} c5 {[%emt 0:00:13]} 4. Nf3 {[%emt 0:00:
00]} Nc6 {[%emt 0:00:46]} 5. Nbd2 {[%emt 0:00:07]} Bf5 {[%emt 0:06:59]} 6. dxc5
{[%emt 0:07:35]} e6 {[%emt 0:03:39]} 7. Bb5 {[%emt 0:09:18]} Bxc5 {[%emt 0:00:
00]} 8. Nb3 {[%emt 0:02:58]} O-O {[%emt 0:02:29]} 9. O-O {[%emt 0:04:07]} Qb6 {
[%emt 0:10:15]} 10. Bd3 {[%emt 0:04:54]} Bg4 {[%emt 0:08:02]} 11. Be2 {[%emt 0:
00:00]} Rfe8 {[%emt 0:05:41]} 12. Nxc5 {[%emt 0:03:50]} Qxc5 {[%emt 0:00:13]}
13. Ne5 {[%emt 0:00:57]} Bf5 {[%emt 0:04:37]} 14. Bd3 {[%emt 0:04:35]} Ne4 {
[%emt 0:03:42]} 15. Nxc6 {[%emt 0:02:25]} bxc6 {[%emt 0:02:43]} 16. Be5 {
[%emt 0:11:21]} f6 {[%emt 0:02:43]} 17. Bd4 {[%emt 0:00:11]} Qe7 {[%emt 0:00:
00]} 18. f3 {[%emt 0:05:13]} Nc5 {[%emt 0:05:20]} 19. Bxf5 {[%emt 0:01:14]}
exf5 {[%emt 0:00:14]} 20. Re1 {[%emt 0:01:01]} Rad8 {[%emt 0:05:30]} 21. b3 {
[%emt 0:01:41]} Ne6 {[%emt 0:00:45]} 22. Bb2 {[%emt 0:00:49]} c5 {[%emt 0:00:
00]} 23. Qd3 {[%emt 0:00:54]} g6 {[%emt 0:04:16]} 24. Rad1 {[%emt 0:01:42]} Nc7
{[%emt 0:05:42]} 25. Qc3 {[%emt 0:01:48]} Kg7 {[%emt 0:02:52]} 26. Qa5 {
[%emt 0:01:43]} Rb8 {[%emt 0:03:22]} 27. Qxa7 {[%emt 0:02:48]} Ra8 {[%emt 0:00:
00]} 28. Qb6 {[%emt 0:00:20]} Rf8 {[%emt 0:04:23]} 29. a4 {[%emt 0:03:19]} Ra6
{[%emt 0:01:33]} 30. Qb7 {[%emt 0:00:14]} Rfa8 {[%emt 0:00:22]} 31. e4 {
[%emt 0:08:20]} R8a7 {[%emt 0:00:49]} 32. Qb8 {[%emt 0:00:12]} Ra8 {[%emt 0:00:
00]} 33. exd5 {[%emt 0:03:15]} Qxe1+ {[%emt 0:01:14]} 34. Rxe1 {[%emt 0:00:04]}
Rxb8 {[%emt 0:00:05]} 35. Re7+ {[%emt 0:00:04]} Kg8 {[%emt 0:00:47]} 36. Rxc7 {
[%emt 0:00:06]} Re8 {[%emt 0:01:21]} 37. Kf2 {[%emt 0:02:28]} c4 {[%emt 0:00:
00]} 38. Rxc4 {[%emt 0:00:08]} Ra5 {[%emt 0:00:13]} 39. Rd4 {[%emt 0:01:16]}
Rd8 {[%emt 0:00:39]} 40. c4 {[%emt 0:01:27]} Kf7 {[%emt 0:00:32]} 41. Ba3 {
[%emt 0:31:15]} Rb8 {[%emt 0:30:41]} 42. Rd3 {[%emt 0:00:08]} Rd8 {[%emt 0:00:
00]} 43. Bb4 {[%emt 0:00:00]} Ra6 {[%emt 0:00:00]} 44. c5 {[%emt 0:00:00]} Rb8
{[%emt 0:00:00]} 45. Ba3 {[%emt 0:00:00]} f4 {[%emt 0:00:00]} 46. c6 {[%emt 0:
00:00]} Ke8 {[%emt 0:00:00]} 47. Bd6 {[%emt 0:00:00]} Rc8 {[%emt 0:00:00]} 48.
Bxf4 {[%emt 0:00:00]} Kd8 {[%emt 0:00:00]} 49. Bd6 {[%emt 0:00:00]} Ra5 {
[%emt 0:00:00]} 50. Ke3 {[%emt 0:00:00]} Rca8 {[%emt 0:00:00]} 51. Kd4 {
[%emt 0:00:00]} f5 {[%emt 0:00:00]} 52. Bc5 {[%emt 0:00:00]} Kc7 {[%emt 0:00:
00]} 53. Re3 {[%emt 0:00:00]} Rd8 {[%emt 0:00:00]} 54. Re7+ {[%emt 0:00:00]}
1-0

[Event "44th Chess Olympiad Women 2022"]
[Site "Chennai"]
[Date "2022.08.05"]
[Round "7.44"]
[White "Galera Serra, Maria"]
[Black "Diaz Cesar, Wilsaida Pieranlly"]
[Result "0-1"]
[WhiteElo "1464"]
[BlackElo "1834"]
[Annotator "NA RC"]
[PlyCount "124"]
[EventDate "2022.??.??"]
[TimeControl "60"]

1. e4 {[%emt 0:00:05]} c5 {[%emt 0:00:13]} 2. Nf3 {[%emt 0:00:13]} e6 {[%emt 0:
00:00]} 3. c3 {[%emt 0:08:57]} d5 {[%emt 0:05:07]} 4. Bb5+ {[%emt 0:05:17]} Bd7
{[%emt 0:02:37]} 5. Bxd7+ {[%emt 0:01:01]} Qxd7 {[%emt 0:00:11]} 6. exd5 {
[%emt 0:07:28]} Qxd5 {[%emt 0:01:04]} 7. O-O {[%emt 0:00:14]} Nf6 {[%emt 0:00:
00]} 8. d4 {[%emt 0:01:32]} Nbd7 {[%emt 0:05:02]} 9. Be3 {[%emt 0:02:28]} Be7 {
[%emt 0:02:09]} 10. Nbd2 {[%emt 0:01:37]} cxd4 {[%emt 0:06:17]} 11. Nxd4 {
[%emt 0:03:00]} O-O {[%emt 0:01:17]} 12. Qb3 {[%emt 0:08:19]} Nc5 {[%emt 0:00:
00]} 13. Qxd5 {[%emt 0:02:26]} Nxd5 {[%emt 0:00:07]} 14. Nc4 {[%emt 0:00:42]}
Nxe3 {[%emt 0:01:58]} 15. Nxe3 {[%emt 0:00:09]} Bf6 {[%emt 0:02:12]} 16. Rad1 {
[%emt 0:01:36]} Rfd8 {[%emt 0:02:04]} 17. Rfe1 {[%emt 0:06:34]} Rac8 {[%emt 0:
00:00]} 18. Nf3 {[%emt 0:11:25]} Na4 {[%emt 0:03:51]} 19. Re2 {[%emt 0:01:52]}
Rxd1+ {[%emt 0:09:38]} 20. Nxd1 {[%emt 0:00:11]} Rd8 {[%emt 0:00:23]} 21. Rd2 {
[%emt 0:00:15]} Rxd2 {[%emt 0:03:11]} 22. Nxd2 {[%emt 0:00:08]} Kf8 {[%emt 0:
00:00]} 23. Kf1 {[%emt 0:00:26]} Ke7 {[%emt 0:02:42]} 24. Ne4 {[%emt 0:01:35]}
Be5 {[%emt 0:01:07]} 25. Ke2 {[%emt 0:01:20]} f5 {[%emt 0:00:58]} 26. Nd2 {
[%emt 0:03:30]} g5 {[%emt 0:03:26]} 27. g3 {[%emt 0:01:48]} g4 {[%emt 0:05:28]}
28. Nc4 {[%emt 0:00:33]} Bc7 {[%emt 0:00:59]} 29. b3 {[%emt 0:06:27]} Nc5 {
[%emt 0:02:40]} 30. f3 {[%emt 0:04:06]} h5 {[%emt 0:03:05]} 31. Nf2 {[%emt 0:
00:00]} a6 {[%emt 0:03:57]} 32. fxg4 {[%emt 0:13:21]} hxg4 {[%emt 0:00:48]} 33.
Nd3 {[%emt 0:01:14]} Ne4 {[%emt 0:00:39]} 34. Nc1 {[%emt 0:03:19]} Nxc3+ {
[%emt 0:00:08]} 35. Kd3 {[%emt 0:00:04]} Ne4 {[%emt 0:00:57]} 36. Ne3 {[%emt 0:
00:00]} Ng5 {[%emt 0:02:23]} 37. Ne2 {[%emt 0:00:55]} Nf3 {[%emt 0:01:48]} 38.
Nf1 {[%emt 0:00:40]} Kf6 {[%emt 0:03:10]} 39. Nf4 {[%emt 0:01:05]} Bxf4 {
[%emt 0:04:40]} 40. gxf4 {[%emt 0:00:10]} e5 {[%emt 0:00:21]} 41. Ke3 {[%emt 0:
00:00]} e4 {[%emt 0:31:49]} 42. Kf2 {[%emt 0:00:09]} b6 {[%emt 0:02:00]} 43.
Kg3 {[%emt 0:00:00]} Nd4 {[%emt 0:00:00]} 44. Kf2 {[%emt 0:00:00]} Nf3 {
[%emt 0:00:00]} 45. Ne3 {[%emt 0:00:00]} Ke6 {[%emt 0:00:00]} 46. Kg3 {[%emt 0:
00:00]} b5 {[%emt 0:00:00]} 47. h3 {[%emt 0:00:00]} gxh3 {[%emt 0:00:00]} 48.
Kxh3 {[%emt 0:00:00]} Ng1+ {[%emt 0:00:00]} 49. Kh4 {[%emt 0:00:00]} Nf3+ {
[%emt 0:00:00]} 50. Kg3 {[%emt 0:00:00]} a5 {[%emt 0:00:00]} 51. a4 {[%emt 0:
00:00]} bxa4 {[%emt 0:00:00]} 52. bxa4 {[%emt 0:00:00]} Nd4 {[%emt 0:00:00]}
53. Kf2 {[%emt 0:00:00]} Nb3 {[%emt 0:00:00]} 54. Nc4 {[%emt 0:00:00]} Nc5 {
[%emt 0:00:00]} 55. Nxa5 {[%emt 0:00:00]} Nxa4 {[%emt 0:00:00]} 56. Nc4 {
[%emt 0:00:00]} Nc3 {[%emt 0:00:00]} 57. Ne3 {[%emt 0:00:00]} Nd5 {[%emt 0:00:
00]} 58. Ng2 {[%emt 0:00:00]} Nf6 {[%emt 0:00:00]} 59. Ke2 {[%emt 0:00:00]} Ng4
{[%emt 0:00:00]} 60. Nh4 {[%emt 0:00:00]} Nf6 {[%emt 0:02:36]} 61. Ng2 {
[%emt 0:00:00]} Nd5 {[%emt 0:01:06]} 62. Nh4 {[%emt 0:00:00]} Nxf4+ {[%emt 0:
00:00]} 0-1